bitfinex-derivatives/quotes_SOLF0:USTF0_20260204
["timestamp","ask_amount","ask_price","bid_price","bid_amount"]
[1770237888674,13.61743794,93.248,93.197,9.6762]
[1770237888880,13.61743794,93.248,93.197,13.25096469]
[1770237889177,13.61743794,93.248,93.198,3.57476469]
[1770237889970,3.94643794,93.247,93.198,3.57476469]
[1770237890369,3.94643794,93.245,93.184,3.57476469]
[1770237890577,3.94643794,93.245,93.186,3.57476469]
[1770237891682,3.94643794,93.242,93.186,3.57476469]
[1770237893077,3.94643794,93.238,93.186,3.57476469]
[1770237894779,3.94643794,93.238,93.188,3.89482158]
[1770237895383,3.64240649,93.235,93.188,3.89482158]
[1770237900583,9.6725,93.234,93.188,3.89482158]
[1770237901391,3.74703171,93.233,93.188,3.89482158]
[1770237901686,19.3336,93.289,93.17,3.92827615]
[1770237901687,3.74703171,93.229,93.17,3.92827615]
[1770237901984,3.74703171,93.229,93.116,15.165227]
[1770237901985,3.74703171,93.232,93.18,3.01856369]
[1770237902186,3.74703171,93.232,93.181,3.92827615]
[1770237902386,3.74703171,93.232,93.182,13.60617615]
[1770237902683,3.74703171,93.232,93.183,3.92827615]
[1770237904584,3.74703171,93.232,93.191,3.92827615]
[1770237909388,3.74703171,93.247,93.201,3.92827615]
[1770237910188,3.74703171,93.247,93.203,3.92827615]
[1770237911597,3.74703171,93.247,93.21,3.01902587]
[1770237912398,3.74703171,93.247,93.203,3.92827615]
[1770237912592,3.74703171,93.247,93.191,3.92827615]
[1770237912796,3.74703171,93.239,93.179,3.92827615]
[1770237913695,3.74703171,93.237,93.179,3.92827615]
[1770237913895,3.74703171,93.237,93.18,3.01902587]
[1770237914092,3.74703171,93.237,93.19,6.94730202]
[1770237914298,3.74703171,93.237,93.19,3.92827615]
[1770237915393,3.74703171,93.237,93.191,3.92827615]
[1770237915599,3.74703171,93.237,93.199,13.60437615]
[1770237916597,3.74703171,93.249,93.2,3.92827615]
[1770237920306,3.74703171,93.249,93.201,9.6758]
[1770237921911,3.74703171,93.245,93.2,3.92827615]
[1770237923112,3.74703171,93.245,93.201,3.92827615]
[1770237924018,3.78970692,93.244,93.201,3.92827615]
[1770237927724,9.6702,93.257,93.203,3.8109862]
[1770237927725,3.78970692,93.256,93.203,3.8109862]
[1770237928221,3.78970692,93.256,93.21,3.01902587]
[1770237928523,3.78970692,93.256,93.211,3.8109862]
[1770237930722,3.78970692,93.256,93.191,3.8109862]
[1770237931721,3.78970692,93.242,93.191,3.8109862]
[1770237933723,3.78970692,93.242,93.193,3.8109862]
[1770237934530,3.78970692,93.242,93.195,3.8109862]
[1770237934934,3.78970692,93.239,93.195,3.8109862]
[1770237935828,3.78970692,93.22,93.178,3.8109862]
[1770237936232,3.78970692,93.22,93.16,3.01902587]
[1770237936233,3.78970692,93.22,93.164,3.8109862]
[1770237936733,3.01902587,93.25,93.181,3.8109862]
[1770237936927,3.78970692,93.249,93.19,3.01902587]
[1770237937726,9.6729,93.231,93.19,3.01902587]
[1770237939435,3.78970692,93.247,93.201,3.8109862]
[1770237939630,3.78970692,93.247,93.21,3.01902587]
[1770237939830,3.78970692,93.247,93.201,3.8109862]
[1770237940031,3.78970692,93.245,93.201,3.8109862]
[1770237940433,3.78970692,93.245,93.156,19.3611]
[1770237940434,3.78970692,93.245,93.186,3.8109862]
[1770237941933,3.78970692,93.241,93.188,3.8109862]
[1770237942133,3.78970692,93.241,93.19,3.01902587]
[1770237942330,3.78970692,93.241,93.191,3.8109862]
[1770237942633,3.78970692,93.239,93.191,3.8109862]
[1770237943037,9.673,93.23,93.191,3.8109862]
[1770237943329,3.78970692,93.229,93.166,3.8109862]
[1770237943728,9.6749,93.211,93.166,3.8109862]
[1770237945236,9.6758,93.203,93.166,3.8109862]
[1770237945434,3.78970692,93.214,93.166,3.8109862]
[1770237946035,9.675,93.21,93.166,3.8109862]
[1770237948834,3.78970692,93.209,93.166,3.8109862]
[1770237951736,9.6759,93.201,93.166,3.8109862]
[1770237951933,3.78970692,93.209,93.147,3.8109862]
[1770237952142,3.78970692,93.209,93.151,3.8109862]
[1770237952630,9.6752,93.208,93.153,9.6809]
[1770237952834,3.78970692,93.207,93.154,3.8109862]
[1770237953838,3.78970692,93.207,93.156,3.94668406]
[1770237954736,3.78970692,93.207,93.158,3.94668406]
[1770237957841,3.01902587,93.21,93.122,9.98485495]
[1770237958040,3.74886162,93.199,93.131,3.94668406]
[1770237958334,3.74886162,93.199,93.13,3.01902587]
[1770237958335,3.74886162,93.188,93.133,3.94668406]
[1770237959841,3.9314607,93.186,93.133,3.94668406]
[1770237960037,3.9314607,93.186,93.135,9.6827]
[1770237960442,3.9314607,93.186,93.112,418.15686178]
[1770237960443,3.9314607,93.228,93.161,3.88878869]
[1770237960741,3.9314607,93.228,93.171,9.679]
[1770237960939,3.9314607,93.228,93.172,3.88878869]
[1770237961332,3.9314607,93.228,93.119,13.29744754]
[1770237961333,3.9314607,93.209,93.156,3.88878869]
[1770237961532,3.9314607,93.199,93.141,3.88878869]
[1770237962138,3.9314607,93.186,93.141,3.88878869]
[1770237963737,3.9314607,93.184,93.141,3.88878869]
[1770237965143,9.6779,93.182,93.141,3.88878869]
[1770237967146,3.9314607,93.184,93.141,3.88878869]
[1770237968140,9.6771,93.19,93.141,3.88878869]
[1770237968341,3.9314607,93.207,93.15,6.91083452]
[1770237968537,3.9314607,93.207,93.151,3.88878869]
[1770237969744,3.9314607,93.205,93.151,3.88878869]
[1770237971947,3.9314607,93.201,93.14,6.91083452]
[1770237972143,3.9314607,93.201,93.141,3.88878869]
[1770237972846,3.9314607,93.198,93.141,3.88878869]
[1770237973849,3.9314607,93.194,93.141,3.88878869]
[1770237975243,3.9314607,93.182,93.141,3.88878869]
[1770237982752,9.6781,93.181,93.141,3.88878869]
[1770237984749,3.9314607,93.182,93.141,3.88878869]
[1770237987059,3.86756708,93.18,93.129,3.91404393]
[1770237987756,9.6791,93.171,93.129,3.91404393]
[1770237987946,3.86756708,93.18,93.129,3.91404393]
[1770237988150,3.86756708,93.18,93.13,3.02204583]
[1770237988352,3.86756708,93.18,93.131,3.91404393]
[1770237988552,9.6784,93.178,93.131,3.91404393]
[1770237989355,3.86756708,93.18,93.141,3.91404393]
[1770237993065,9.6783,93.179,93.141,3.91404393]
[1770237993250,13.54586708,93.179,93.141,3.91404393]
[1770237995054,3.86756708,93.178,93.141,3.91404393]
[1770237996564,3.86756708,93.178,93.133,8.09694393]
[1770237996759,3.86756708,93.178,93.14,3.02204583]
[1770237997359,3.86756708,93.178,93.12,12.70634583]
[1770237997558,3.86756708,93.178,93.13,3.02204583]
[1770237998465,3.86756708,93.176,93.126,2.64370841]
[1770238000662,3.86756708,93.162,93.126,2.64370841]
[1770238002368,3.86756708,93.162,93.113,2.62599821]
[1770238003359,9.6811,93.152,93.113,2.62599821]
[1770238003557,3.86756708,93.162,93.113,2.62599821]
[1770238003757,3.86756708,93.162,93.102,2.62304511]
[1770238003963,3.86756708,93.159,93.102,2.62304511]
[1770238004865,3.86756708,93.151,93.102,2.62304511]
[1770238005769,3.86756708,93.149,93.102,2.62304511]
[1770238006564,3.86756708,93.146,93.091,9.6873]
[1770238006970,3.86756708,93.146,93.091,12.3084633]
[1770238007468,3.86756708,93.146,93.096,9.6868]
[1770238007668,3.86756708,93.146,93.101,2.76358978]
[1770238008267,9.6809,93.153,93.057,1.86880756]
[1770238008268,3.86756708,93.167,93.121,2.76358978]
[1770238008665,3.86756708,93.166,93.121,2.76358978]
[1770238010065,3.86756708,93.157,93.106,2.82140419]
[1770238010771,3.86756708,93.157,93.106,12.50710419]
[1770238010963,3.86756708,93.157,93.106,2.82140419]
[1770238011565,3.86756708,93.157,93.111,2.83292774]
[1770238011866,3.86756708,93.157,93.12,3.02204583]
[1770238012270,3.86756708,93.157,93.111,2.83292774]
[1770238013365,3.86756708,93.157,93.1,3.02204583]
[1770238013560,19.3524,93.199,93.083,2.83557263]
[1770238013561,3.86756708,93.149,93.083,2.83557263]
[1770238013961,3.86756708,93.149,93.09,3.02204583]
[1770238014470,3.75738526,93.139,93.061,3.80696367]
[1770238014668,3.75738526,93.139,93.07,3.02204583]
[1770238015065,3.75738526,93.139,93.07,6.8290095]
[1770238015466,3.75738526,93.139,93.071,3.80696367]
[1770238015767,3.75738526,93.149,93.101,3.80696367]
[1770238015964,3.75738526,93.149,93.11,3.02204583]
[1770238016167,3.75738526,93.149,93.11,6.8290095]
[1770238017781,3.75738526,93.189,93.121,3.80696367]
[1770238018880,3.70589112,93.188,93.121,3.80696367]
[1770238019678,3.70589112,93.185,93.121,3.80696367]
[1770238020382,3.70589112,93.219,93.151,3.84411234]
[1770238020582,3.70589112,93.219,93.17,3.02204583]
[1770238020780,3.70589112,93.219,93.171,3.84411234]
[1770238020982,3.70589112,93.219,93.113,10.03914788]
[1770238020983,3.02204583,93.27,93.2,3.02204583]
[1770238021185,3.02204583,93.28,93.2,6.86615817]
[1770238021386,3.02204583,93.23,93.171,3.84411234]
[1770238021589,3.02204583,93.22,93.171,3.84411234]
[1770238021780,3.02204583,93.23,93.171,3.84411234]
[1770238022684,9.673,93.229,93.171,3.84411234]
[1770238023080,3.70589112,93.228,93.171,3.84411234]
[1770238024283,3.70589112,93.228,93.18,3.02204583]
[1770238024478,3.70589112,93.228,93.18,3.01904728]
[1770238024689,3.70589112,93.228,93.181,3.84411234]
[1770238025086,3.70589112,93.228,93.19,3.01904728]
[1770238025489,3.70589112,93.228,93.181,3.84411234]
[1770238026388,3.70589112,93.228,93.164,3.84411234]
[1770238029496,3.70589112,93.221,93.164,3.84411234]
[1770238030492,3.70589112,93.21,93.164,3.84411234]
[1770238033496,3.70589112,93.206,93.164,3.84411234]
[1770238036300,3.70589112,93.222,93.164,3.84411234]
[1770238037892,3.70589112,93.222,93.168,3.84411234]
[1770238040701,9.6738,93.221,93.168,3.84411234]
[1770238041193,3.70589112,93.222,93.168,3.84411234]
[1770238041400,3.70589112,93.262,93.18,8.08845002]
[1770238041598,3.70589112,93.262,93.181,3.84411234]
[1770238042197,13.37549112,93.262,93.208,3.84411234]
[1770238044704,13.37549112,93.262,93.217,9.6742]
[1770238044902,13.37549112,93.262,93.208,3.84411234]
[1770238045302,9.67,93.258,93.208,3.84411234]
[1770238046602,9.67,93.258,93.21,9.675]
[1770238046805,3.64670759,93.261,93.211,3.82490398]
[1770238047003,19.3281,93.316,93.211,3.82490398]
[1770238047004,3.64670759,93.305,93.211,3.82490398]
[1770238047203,3.64670759,93.305,93.221,3.82490398]
[1770238047600,3.64670759,93.305,93.151,10.03914788]
[1770238047601,3.64670759,93.305,93.196,3.82490398]
[1770238048705,8.08845002,93.31,93.2,3.82490398]
[1770238048706,9.6693,93.265,93.2,3.82490398]
[1770238049010,3.64670759,93.267,93.2,3.82490398]
[1770238049704,3.64670759,93.282,93.223,3.82490398]
[1770238050409,13.31270759,93.297,93.233,3.82490398]
[1770238050605,3.64670759,93.297,93.233,3.82490398]
[1770238051808,9.6663,93.294,93.236,3.82490398]
[1770238052010,3.64670759,93.297,93.236,3.82490398]
[1770238052909,3.64670759,93.297,93.241,3.82490398]
[1770238053105,3.64670759,93.335,93.241,3.82490398]
[1770238054805,9.6644,93.313,93.253,3.82490398]
[1770238055006,3.64670759,93.316,93.253,3.82490398]
[1770238055308,9.81893341,93.386,93.194,150.525]
[1770238055309,3.64670759,93.349,93.282,3.82490398]
[1770238056803,3.64670759,93.349,93.231,19.3456]
[1770238056804,3.64670759,93.349,93.294,3.82490398]
[1770238057812,3.64670759,93.349,93.27,8.08845002]
[1770238057813,3.64670759,93.349,93.296,3.82490398]
[1770238058509,13.30780759,93.345,93.296,3.82490398]
[1770238059214,9.6614,93.341,93.296,3.82490398]
[1770238059408,13.30810759,93.341,93.296,3.82490398]
[1770238060810,3.64670759,93.334,93.277,3.82490398]
[1770238061316,3.64670759,93.324,93.277,3.82490398]
[1770238062413,3.64670759,93.32,93.277,3.82490398]
[1770238063525,169.5234,93.39,93.231,3.82490398]
[1770238063526,3.64670759,93.316,93.231,3.82490398]
[1770238064011,3.64670759,93.316,93.243,3.82490398]
[1770238065514,3.64670759,93.316,93.246,3.82490398]
[1770238066117,9.6641,93.315,93.249,9.6709]
[1770238066320,13.31080759,93.315,93.25,3.82490398]
[1770238068111,3.64670759,93.314,93.25,3.82490398]
[1770238068309,3.64670759,93.308,93.25,3.82490398]
[1770238069417,9.6662,93.295,93.25,3.82490398]
[1770238071116,13.31290759,93.295,93.25,3.82490398]
[1770238071324,3.64670759,93.294,93.25,3.82490398]
[1770238071827,9.6664,93.293,93.25,3.82490398]
[1770238072123,3.64670759,93.292,93.224,3.82490398]
[1770238072419,9.6683,93.275,93.224,3.82490398]
[1770238073321,3.64670759,93.274,93.224,3.82490398]
[1770238073919,9.6686,93.272,93.224,3.82490398]
[1770238074620,9.6695,93.264,93.224,3.82490398]
[1770238075622,9.6685,93.273,93.224,3.82490398]
[1770238076220,13.45460251,93.273,93.224,3.82490398]
[1770238078027,9.6693,93.266,93.224,3.82490398]
[1770238080227,3.57361263,93.259,93.205,3.81611191]
[1770238080828,9.6719,93.24,93.205,3.81611191]
[1770238081127,3.57361263,93.239,93.192,3.81611191]
[1770238081523,3.57361263,93.239,93.18,3.01834199]
[1770238081524,9.6734,93.225,93.18,3.01834199]
[1770238081726,19.3376,93.27,93.178,3.81611191]
[1770238081727,3.57361263,93.224,93.178,3.81611191]
[1770238082924,13.24731263,93.223,93.178,3.81611191]
[1770238083521,3.57361263,93.239,93.178,3.81611191]
[1770238084929,13.24641263,93.231,93.178,3.81611191]
[1770238086023,9.6734,93.226,93.178,3.81611191]
[1770238086423,3.57361263,93.225,93.178,3.81611191]
[1770238087032,3.57361263,93.225,93.161,3.81611191]
[1770238088427,3.57361263,93.203,93.161,3.81611191]
[1770238088629,3.57361263,93.203,93.132,416.95409062]
[1770238089333,9.6794,93.168,93.132,416.95409062]
[1770238089722,9.6794,93.168,93.114,3.81611191]
[1770238090628,13.25201263,93.177,93.118,3.81611191]
[1770238091730,3.57361263,93.174,93.118,3.81611191]
[1770238092737,9.679,93.172,93.118,3.81611191]
[1770238093635,9.6794,93.168,93.118,3.81611191]
[1770238093841,3.57361263,93.167,93.118,3.81611191]
[1770238095339,3.57361263,93.167,93.12,3.81611191]
[1770238096841,9.6788,93.174,93.12,3.81611191]
[1770238098141,9.6794,93.168,93.12,3.81611191]
[1770238099343,9.6804,93.159,93.12,3.81611191]
[1770238100638,3.57361263,93.156,93.099,3.81611191]
[1770238101040,9.6809,93.154,93.099,3.81611191]
[1770238102740,9.6809,93.154,93.101,3.81611191]
[1770238103146,3.57361263,93.156,93.101,3.81611191]
[1770238103147,9.6817,93.146,93.101,3.81611191]
[1770238103350,3.57361263,93.146,93.08,3.81611191]
[1770238104151,9.6824,93.139,93.089,3.64039047]
[1770238105247,9.6832,93.132,93.089,3.64039047]
[1770238107651,3.70250074,93.204,93.101,3.64039047]
[1770238108946,3.70250074,93.175,93.115,3.64039047]
[1770238110251,9.6788,93.173,93.119,3.64039047]
[1770238110442,13.38130074,93.173,93.119,3.64039047]
[1770238110646,3.70250074,93.172,93.119,3.64039047]
[1770238111550,3.70250074,93.172,93.1,8.08735209]
[1770238111551,3.70250074,93.208,93.121,3.64039047]
[1770238112252,3.70250074,93.196,93.132,3.64039047]
[1770238113450,3.70250074,93.176,93.132,3.64039047]
[1770238113649,3.70250074,93.176,93.101,3.64039047]
[1770238114650,3.70250074,93.174,93.117,3.64039047]
[1770238116754,3.70250074,93.163,93.117,3.64039047]
[1770238120463,3.70250074,93.163,93.119,3.64039047]
[1770238121054,9.6784,93.177,93.128,3.64039047]
[1770238121954,9.6775,93.186,93.13,3.64039047]
[1770238122354,3.70250074,93.196,93.1,8.08735209]
[1770238122355,9.6766,93.194,93.145,3.64039047]
[1770238123255,13.37910074,93.194,93.148,3.64039047]
[1770238124463,13.37910074,93.194,93.15,3.0207457]
[1770238124764,3.70250074,93.194,93.15,3.0207457]
[1770238125165,3.70250074,93.194,93.151,3.64039047]
[1770238126262,3.70250074,93.219,93.18,3.0207457]
[1770238127564,3.70250074,93.219,93.183,9.6777]
[1770238131366,9.6717,93.242,93.183,9.6777]
[1770238131570,9.6717,93.242,93.137,19.3651]
[1770238131571,3.70250074,93.241,93.189,3.64039047]
[1770238132668,3.70250074,93.241,93.201,9.6758]
[1770238133267,3.70250074,93.262,93.206,3.64039047]
[1770238134370,3.70250074,93.262,93.208,3.6836815]
[1770238134772,285.1468438,93.29,93.208,3.6836815]
[1770238134773,3.89370119,93.275,93.208,3.6836815]
[1770238135878,3.89370119,93.275,93.221,9.6738]
[1770238136479,3.89370119,93.275,93.228,3.6836815]
[1770238137679,3.89370119,93.275,93.229,9.673]
[1770238137879,3.89370119,93.275,93.23,3.6836815]
[1770238142684,3.89370119,93.275,93.231,3.89638159]
[1770238143782,285.1468438,93.29,93.233,3.89638159]
[1770238143978,3.75321029,93.289,93.233,3.89638159]
[1770238144878,3.75321029,93.289,93.248,3.89638159]
[1770238145688,3.75321029,93.289,93.252,9.6705]
[1770238146691,3.75321029,93.289,93.252,13.56688159]
[1770238147781,3.75321029,93.303,93.252,13.56688159]
[1770238149383,3.75321029,93.303,93.26,3.01426933]
[1770238149588,3.75321029,93.303,93.257,3.89638159]
[1770238150890,3.75321029,93.303,93.262,9.6696]
[1770238153184,3.75321029,93.303,93.257,3.89638159]
[1770238153392,3.75321029,93.303,93.243,3.89638159]
[1770238154786,3.75321029,93.303,93.252,3.89638159]
[1770238155694,3.75321029,93.317,93.271,3.89638159]
[1770238156686,3.75321029,93.317,93.271,13.56498159]
[1770238156890,3.75321029,93.339,93.271,3.89638159]
[1770238157393,3.75321029,93.319,93.247,3.89638159]
[1770238157587,3.75321029,93.289,93.216,3.89638159]
[1770238157788,3.75321029,93.239,93.183,3.89638159]
[1770238157989,3.75321029,93.229,93.183,3.89638159]
[1770238158392,3.75321029,93.227,93.183,3.89638159]
[1770238158592,3.01426933,93.22,93.16,3.89638159]
[1770238158894,6.76747962,93.19,93.137,3.89638159]
[1770238159094,3.75321029,93.179,93.113,3.89638159]
[1770238160286,3.75321029,93.179,93.12,3.01426933]
[1770238160489,3.75321029,93.179,93.113,3.89638159]
[1770238161292,3.75321029,93.219,93.114,3.89638159]
[1770238162794,3.75321029,93.205,93.132,3.89638159]
[1770238163993,3.75321029,93.205,93.145,3.55782114]
[1770238165795,3.75321029,93.205,93.147,3.55782114]
[1770238166397,9.6743,93.217,93.147,3.55782114]
[1770238166597,3.68501413,93.22,93.147,3.55782114]
[1770238167393,3.68501413,93.22,93.159,9.6802]
[1770238167702,3.68501413,93.22,93.16,3.55782114]
[1770238168797,3.68501413,93.22,93.165,3.55782114]
[1770238170503,3.68501413,93.22,93.168,3.55782114]
[1770238171399,3.68501413,93.22,93.15,8.09714434]
[1770238171400,3.68501413,93.22,93.17,3.55782114]
[1770238171902,3.68501413,93.22,93.172,3.55782114]
[1770238174200,3.68501413,93.249,93.19,3.55782114]
[1770238174803,9.6711,93.248,93.194,3.55782114]
[1770238176699,3.68501413,93.245,93.161,3.55782114]
[1770238177704,9.6723,93.236,93.173,9.6788]
[1770238177904,3.68501413,93.235,93.174,3.55782114]
[1770238178706,3.68501413,93.235,93.179,9.6781]
[1770238179107,3.68501413,93.233,93.179,9.6781]
[1770238179505,3.68501413,93.233,93.179,13.23592114]
[1770238180805,13.35771413,93.232,93.179,3.55782114]
[1770238181113,3.68501413,93.231,93.179,3.55782114]
[1770238181315,3.68501413,93.229,93.179,3.55782114]
[1770238181508,3.68501413,93.229,93.161,3.55782114]
[1770238182811,13.35971413,93.213,93.161,3.55782114]
[1770238183313,3.68501413,93.212,93.161,3.55782114]
[1770238187515,9.675,93.21,93.161,3.55782114]
[1770238189417,13.36001413,93.21,93.161,3.55782114]
[1770238190315,3.68501413,93.21,93.164,9.6797]
[1770238190512,3.68501413,93.223,93.18,6.57797393]
[1770238190710,3.68501413,93.223,93.19,3.02015279]
[1770238191216,3.68501413,93.22,93.152,3.55782114]
[1770238191415,3.68501413,93.22,93.107,412.02693723]
[1770238191416,3.68501413,93.22,93.161,3.55782114]
[1770238191620,3.68501413,93.22,93.108,32.26]
[1770238191621,3.68501413,93.236,93.19,3.02015279]
[1770238193617,3.68501413,93.236,93.2,3.02015279]
[1770238193817,3.68501413,93.236,93.193,3.55782114]
[1770238194828,3.86312653,93.251,93.196,3.55823192]
[1770238195414,3.86312653,93.242,93.196,3.55823192]
[1770238200233,3.8996839,93.296,93.198,3.94273759]
[1770238200426,3.8996839,93.296,93.215,3.94273759]
[1770238200732,3.8996839,93.271,93.217,3.94273759]
[1770238200928,3.8996839,93.271,93.22,6.96289038]
[1770238201135,3.8996839,93.271,93.22,3.94273759]
[1770238201330,3.8996839,93.269,93.22,3.94273759]
[1770238201525,9.81364094,93.311,93.201,3.94273759]
[1770238201526,3.8996839,93.257,93.201,3.94273759]
[1770238202139,150.3285,93.317,93.184,3.94273759]
[1770238202140,3.8996839,93.244,93.184,3.94273759]
[1770238202329,3.8996839,93.244,93.114,20.05227614]
[1770238202330,3.8996839,93.239,93.17,3.02015279]
[1770238202534,19.3347,93.284,93.166,3.94273759]
[1770238202535,3.8996839,93.229,93.166,3.94273759]
[1770238202829,3.8996839,93.227,93.166,3.94273759]
[1770238203034,3.8996839,93.227,93.18,3.02015279]
[1770238203425,3.8996839,93.224,93.171,3.94273759]
[1770238204437,3.8996839,93.219,93.171,3.94273759]
[1770238206035,3.8996839,93.209,93.151,3.94273759]
[1770238206230,9.674,93.22,93.151,3.94273759]
[1770238206438,3.8996839,93.225,93.18,3.01883492]
[1770238206834,3.8996839,93.225,93.172,3.94273759]
[1770238207628,3.8996839,93.209,93.151,3.94273759]
[1770238207827,3.8996839,93.229,93.161,3.94273759]
[1770238208137,3.8996839,93.229,93.17,3.01883492]
[1770238208339,3.8996839,93.249,93.181,3.94273759]
[1770238208930,3.8996839,93.229,93.165,3.94273759]
[1770238209235,3.8996839,93.229,93.16,3.01883492]
[1770238209236,3.8996839,93.219,93.151,3.94273759]
[1770238209436,3.8996839,93.219,93.17,3.01883492]
[1770238209732,3.8996839,93.199,93.134,9.90141574]
[1770238209932,3.8996839,93.199,93.116,13.30861859]
[1770238209933,3.8996839,93.179,93.126,3.94273759]
[1770238212531,8.09628085,93.22,93.107,412.02693723]
[1770238212532,3.8996839,93.202,93.129,3.94273759]
[1770238212730,3.8996839,93.239,93.132,3.94273759]
[1770238212935,3.8996839,93.239,93.139,3.94273759]
[1770238213134,3.8996839,93.239,93.147,3.94273759]
[1770238213337,3.8996839,93.239,93.149,3.94273759]
[1770238213538,3.8996839,93.231,93.159,3.94273759]
[1770238214053,3.8996839,93.246,93.181,3.94273759]
[1770238214238,3.8996839,93.246,93.165,9.90141574]
[1770238214239,3.8996839,93.246,93.165,3.94273759]
[1770238214438,3.8996839,93.226,93.165,3.94273759]
[1770238215839,3.8996839,93.218,93.144,3.94273759]
[1770238216541,9.6762,93.199,93.144,3.94273759]
[1770238217339,9.6767,93.194,93.144,3.94273759]
[1770238218344,3.8996839,93.198,93.144,3.94273759]
[1770238219744,3.8996839,93.198,93.146,3.94273759]
[1770238220339,9.6754,93.207,93.149,13.62393759]
[1770238220543,3.8996839,93.214,93.15,3.94273759]
[1770238221837,9.6748,93.212,93.153,3.94273759]
[1770238222547,9.6752,93.208,93.153,3.94273759]
[1770238222744,3.8996839,93.211,93.143,9.90141574]
[1770238222745,3.8996839,93.207,93.143,9.90141574]
[1770238222948,3.8996839,93.207,93.137,3.94273759]
[1770238223845,9.6769,93.192,93.137,3.94273759]
[1770238224243,9.6769,93.192,93.096,20.05227614]
[1770238224244,3.57595175,93.191,93.118,9.90141574]
[1770238224445,3.57595175,93.174,93.119,3.9393057]
[1770238225050,9.679,93.172,93.119,3.9393057]
[1770238225351,3.57595175,93.174,93.119,3.9393057]
[1770238226247,3.57595175,93.174,93.122,9.6841]
[1770238226447,3.57595175,93.174,93.123,3.9393057]
[1770238231652,13.25485175,93.172,93.123,3.9393057]
[1770238233343,3.57595175,93.172,93.131,3.9393057]
[1770238235752,3.57595175,93.189,93.14,3.02301638]
[1770238236053,3.57595175,93.219,93.15,6.96232208]
[1770238236957,3.57595175,93.201,93.15,3.9393057]
[1770238237452,3.57595175,93.181,93.121,3.9393057]
[1770238237654,3.02301638,93.18,93.121,3.9393057]
[1770238237852,3.57595175,93.179,93.121,3.9393057]
[1770238238057,13.25535175,93.168,93.121,3.9393057]
[1770238238351,19.351,93.206,93.107,412.02693723]
[1770238238352,3.57595175,93.167,93.107,412.02693723]
[1770238238556,9.6804,93.159,93.107,415.96624293]
[1770238238753,3.57595175,93.167,93.12,3.02301638]
[1770238239155,3.57595175,93.167,93.108,3.9393057]
[1770238239756,9.6808,93.154,93.108,3.9393057]
[1770238240353,9.68,93.162,93.108,3.9393057]
[1770238241056,19.351,93.206,93.121,3.9393057]
[1770238241057,9.6789,93.173,93.121,3.9393057]
[1770238241251,13.25485175,93.173,93.13,3.02301638]
[1770238241558,3.57595175,93.172,93.13,3.02301638]
[1770238242550,9.6779,93.182,93.131,3.9393057]
[1770238242751,3.57595175,93.181,93.14,3.02301638]
[1770238243560,9.6768,93.193,93.16,3.02301638]
[1770238243756,9.6768,93.193,93.141,3.9393057]
[1770238243757,3.57595175,93.192,93.15,3.02301638]
[1770238244258,3.57595175,93.189,93.13,3.02301638]
[1770238244452,3.57595175,93.189,93.12,3.02301638]
[1770238244657,3.57595175,93.189,93.121,3.9393057]
[1770238244860,3.57595175,93.189,93.13,3.02301638]
[1770238245758,3.57595175,93.175,93.121,3.9393057]
[1770238246749,9.6792,93.17,93.121,3.9393057]
[1770238248061,3.57595175,93.175,93.121,3.9393057]
[1770238248262,3.57595175,93.175,93.13,6.96232208]
[1770238253364,9.6788,93.173,93.13,6.96232208]
[1770238254162,3.74123344,93.169,93.13,3.02301638]
[1770238254367,3.74123344,93.169,93.11,6.69738205]
[1770238254669,3.74123344,93.169,93.111,3.67436567]
[1770238255069,3.74123344,93.153,93.098,3.67436567]
[1770238255269,3.74123344,93.153,93.101,3.67436567]
[1770238255472,3.74123344,93.153,93.11,3.02301638]
[1770238256370,13.42223344,93.152,93.101,3.67436567]
[1770238256769,3.74123344,93.151,93.101,3.67436567]
[1770238257268,9.6813,93.15,93.101,3.67436567]
[1770238258869,13.42253344,93.15,93.101,3.67436567]
[1770238260862,3.73737725,93.149,93.101,3.67436567]
[1770238261770,9.6817,93.146,93.101,3.67436567]
[1770238262364,9.6818,93.144,93.101,3.67436567]
[1770238262562,3.73737725,93.143,93.084,9.90141574]
[1770238262763,3.73737725,93.143,92.979,150.8729]
[1770238262764,3.73737725,93.143,93.057,3.93463223]
[1770238262970,3.73737725,93.143,92.998,150.8431]
[1770238262971,3.73737725,93.143,93.061,3.93463223]
[1770238263573,9.6829,93.134,93.081,3.93103556]
[1770238265167,9.6829,93.134,93.083,3.81220253]
[1770238265767,9.683,93.133,93.083,3.81220253]
[1770238265973,3.73737725,93.143,93.083,3.81220253]
[1770238266777,9.6838,93.125,93.083,3.81220253]
[1770238266984,3.73737725,93.143,93.083,3.81220253]
[1770238267383,0.27186225,93.124,93.066,3.8170252]
[1770238268679,0.27186225,93.138,93.08,3.8170252]
[1770238270185,9.6834,93.129,93.08,3.8170252]
[1770238270384,0.20911127,93.128,93.08,3.8170252]
[1770238271688,9.88397932,93.111,93.048,3.85361666]
[1770238272685,9.88397932,93.111,93.027,1.86905849]
[1770238272686,9.88397932,93.111,93.05,3.85361666]